bitfinex/quotes_SOLUSD_20250601
["timestamp","ask_amount","ask_price","bid_price","bid_amount"]
[1748787600994,6.52103032,153.35,153.26,18.64964886]
[1748787601187,6.52103032,153.35,153.31,20.44427061]
[1748787601385,26.96530093,153.35,153.31,20.44427061]
[1748787602299,6.52103032,153.35,153.31,20.44427061]
[1748787602510,0.9100397,153.36,153.34,20.44427061]
[1748787602678,0.9100397,153.36,153.35,20.44427061]
[1748787603183,0.9100397,153.36,153.35,39.09391947]
[1748787604005,0.9100397,153.36,153.35,59.53819008]
[1748787604181,0.9100397,153.36,153.35,25.17067918]
[1748787604377,0.9100397,153.36,153.35,26.96530093]
[1748787604705,0.9100397,153.36,153.33,20.44427061]
[1748787604918,0.9100397,153.36,153.33,60.96427061]
[1748787605231,0.9100397,153.36,153.32,31.14427061]
[1748787605524,0.9100397,153.36,153.34,20.44427061]
[1748787605893,0.9100397,153.36,153.35,20.44427061]
[1748787606231,0.9100397,153.36,153.35,60.96427061]
[1748787607298,0.9100397,153.36,153.35,79.61391947]
[1748787607509,0.9100397,153.36,153.35,86.13494979]
[1748787607827,0.9100397,153.36,153.35,134.45484354]
[1748787608039,0.9100397,153.36,153.35,134.1705204]
[1748787609726,0.9100397,153.36,153.35,134.45484354]
[1748787610917,0.9100397,153.36,153.35,108.45484354]
[1748787611234,0.9100397,153.36,153.35,113.72624979]
[1748787611397,0.9100397,153.36,153.35,71.61494979]
[1748787611721,0.9100397,153.36,153.35,46.44427061]
[1748787612297,0.9100397,153.36,153.35,20.44427061]
[1748787612515,0.9100397,153.36,153.34,20.44427061]
[1748787612816,0.9100397,153.36,153.35,20.44427061]
[1748787614216,0.9100397,153.36,153.35,45.61494979]
[1748787615530,0.9100397,153.36,153.35,20.44427061]
[1748787616818,0.9100397,153.36,153.34,20.44427061]
[1748787618802,0.9100397,153.36,153.32,10.7]
[1748787619001,20.44427061,153.34,153.3,20.44427061]
[1748787619311,20.44427061,153.34,153.29,31.12427061]
[1748787619510,6.52188091,153.33,153.29,31.12427061]
[1748787620528,0.9100397,153.36,153.32,20.44427061]
[1748787620732,0.9100397,153.36,153.35,20.44427061]
[1748787623020,0.9100397,153.36,153.35,26.96530093]
[1748787623208,0.9100397,153.36,153.35,45.61494979]
[1748787623409,0.9100397,153.36,153.35,66.0592204]
[1748787624019,0.9100397,153.36,153.35,26.96530093]
[1748787624929,0.9100397,153.36,153.34,10.68]
[1748787625143,0.9100397,153.36,153.35,20.44427061]
[1748787627064,2.96518778,153.38,153.36,0.14216157]
[1748787627345,2.96518778,153.38,153.37,39.23608104]
[1748787627555,2.96518778,153.38,153.37,45.61409942]
[1748787627924,14.26334394,153.48,153.44,20.44427061]
[1748787628549,14.72062054,153.48,153.44,20.44427061]
[1748787628733,14.22062054,153.48,153.44,20.44427061]
[1748787628943,34.66489115,153.48,153.43,20.44427061]
[1748787629531,20.44427061,153.47,153.42,20.44427061]
[1748787629731,6.51635605,153.46,153.42,20.44427061]
[1748787629951,20.44427061,153.43,153.39,10.68]
[1748787630149,20.44427061,153.42,153.38,20.44427061]
[1748787630333,20.44427061,153.43,153.38,20.44427061]
[1748787630765,20.44427061,153.42,153.38,20.44427061]
[1748787631261,30.59060567,153.41,153.35,10.68]
[1748787631560,30.59060567,153.41,153.36,40.62]
[1748787631860,8.04850482,153.4,153.35,30.59060567]
[1748787632042,8.04850482,153.4,153.36,30.59060567]
[1748787632763,54.93637254,153.4,153.35,30.59060567]
[1748787632948,24.34576687,153.4,153.34,71.21060567]
[1748787633431,24.34576687,153.4,153.34,30.59060567]
[1748787633634,54.93637254,153.4,153.35,30.59060567]
[1748787633867,54.93637254,153.4,153.36,30.59060567]
[1748787633868,8.04850482,153.4,153.36,30.59060567]
[1748787634156,8.04850482,153.4,153.37,30.59060567]
[1748787634340,8.04850482,153.4,153.32,47.14225311]
[1748787634341,8.04850482,153.4,153.36,30.59060567]
[1748787634537,38.63911049,153.4,153.36,30.59060567]
[1748787634927,8.04850482,153.4,153.35,30.59060567]
[1748787635134,38.63911049,153.4,153.35,30.59060567]
[1748787635659,38.63911049,153.4,153.33,25.17132971]
[1748787635660,8.04850482,153.4,153.36,30.59060567]
[1748787636348,38.63911049,153.4,153.35,30.59060567]
[1748787637155,30.59060567,153.38,153.31,10.76]
[1748787637451,30.59060567,153.38,153.33,30.59060567]
[1748787637663,30.59060567,153.37,153.33,30.59060567]
[1748787638028,30.59060567,153.37,153.32,40.6]
[1748787638231,30.59060567,153.37,153.32,30.59060567]
[1748787638666,6.52060511,153.36,153.32,30.59060567]
[1748787639052,30.59060567,153.35,153.31,10.76]
[1748787639368,30.59060567,153.35,153.3,40.58]
[1748787639656,30.59060567,153.35,153.3,71.17060567]
[1748787640566,30.59060567,153.35,153.31,30.59060567]
[1748787640734,37.11248658,153.33,153.28,30.59060567]
[1748787641065,37.11248658,153.33,153.28,71.17060567]
[1748787641359,37.11248658,153.33,153.28,29.17126506]
[1748787641360,30.59060567,153.32,153.28,29.17126506]
[1748787641540,30.59060567,153.32,153.27,41.35060567]
[1748787641743,30.59060567,153.3,153.23,17.28610566]
[1748787641943,30.59060567,153.29,153.25,30.59060567]
[1748787643188,24.35618318,153.33,153.26,30.59060567]
[1748787643338,8.05148091,153.33,153.28,30.59060567]
[1748787643666,38.64208658,153.33,153.28,30.59060567]
[1748787643851,30.59060567,153.32,153.28,30.59060567]
[1748787644357,37.11321881,153.32,153.28,30.59060567]
[1748787644562,37.11321881,153.32,153.27,30.59060567]
[1748787644762,30.59060567,153.31,153.24,47.10563971]
[1748787645062,30.59060567,153.31,153.26,30.59060567]
[1748787645267,30.59060567,153.3,153.26,30.59060567]
[1748787645464,30.59060567,153.31,153.26,30.59060567]
[1748787646467,6.52294697,153.31,153.27,30.59060567]
[1748787647047,37.11355264,153.31,153.26,30.59060567]
[1748787648151,37.11355264,153.31,153.27,30.59060567]
[1748787648569,37.11355264,153.31,153.25,6.52512368]
[1748787648745,37.11355264,153.31,153.27,30.59060567]
[1748787649066,37.11293425,153.32,153.27,30.59060567]
[1748787649265,37.11293425,153.32,153.25,6.52512368]
[1748787649473,30.59060567,153.31,153.27,30.59060567]
[1748787649854,37.11293425,153.32,153.28,30.59060567]
[1748787650276,6.52232858,153.32,153.28,30.59060567]
[1748787651159,6.52232858,153.32,153.24,40.58]
[1748787651160,26.94236715,153.32,153.27,20.42003857]
[1748787651654,6.52232858,153.32,153.28,20.42003857]
[1748787651880,26.94236715,153.32,153.28,20.42003857]
[1748787652186,20.42003857,153.31,153.26,20.42003857]
[1748787652681,26.94296091,153.31,153.26,20.42003857]
[1748787652861,26.94248537,153.32,153.27,20.42003857]
[1748787659086,26.94248537,153.32,153.28,20.42003857]
[1748787659587,20.87731517,153.36,153.31,20.42003857]
[1748787659786,6.97802998,153.36,153.33,20.42003857]
[1748787660363,0.4572766,153.36,153.33,20.42003857]
[1748787662981,6.97791344,153.36,153.33,20.42003857]
[1748787664999,0.4572766,153.36,153.34,20.42003857]
[1748787665309,0.4572766,153.36,153.35,20.42003857]
[1748787668184,0.4572766,153.36,153.34,20.42003857]
[1748787668379,6.97788398,153.36,153.34,20.42003857]
[1748787669602,20.42003857,153.35,153.28,10.76]
[1748787669788,20.42003857,153.35,153.3,20.42003857]
[1748787669994,20.42003857,153.33,153.28,10.76]
[1748787670192,20.42003857,153.33,153.28,31.18003857]
[1748787670393,20.42003857,153.33,153.28,20.42003857]
[1748787671013,20.42003857,153.32,153.27,20.42003857]
[1748787671186,20.42003857,153.32,153.25,40.52]
[1748787671382,6.52273172,153.31,153.27,20.42003857]
[1748787673904,6.52273172,153.31,153.25,47.04507956]
[1748787674211,6.52273172,153.31,153.27,20.42003857]
[1748787674606,20.42003857,153.31,153.27,20.42003857]
[1748787675399,6.52188091,153.33,153.27,20.42003857]
[1748787675598,20.42003857,153.32,153.27,20.42003857]
[1748787676414,6.52188091,153.33,153.28,20.42003857]
[1748787676619,13.0401098,153.36,153.32,20.42003857]
[1748787676816,6.9780098,153.36,153.33,20.42003857]
[1748787677216,6.9780098,153.36,153.32,20.42003857]
[1748787677521,6.9780098,153.36,153.3,40.52]
[1748787677522,0.4572766,153.36,153.35,20.42003857]
[1748787678718,0.4572766,153.36,153.35,26.94106889]
[1748787679218,0.4572766,153.36,153.35,67.46106889]
[1748787680144,0.4572766,153.36,153.35,86.11071775]
[1748787682616,0.4572766,153.36,153.35,20.42003857]
[1748787682818,0.4572766,153.36,153.35,60.92003857]
[1748787683041,0.4572766,153.36,153.35,67.44106889]
[1748787684332,0.4572766,153.36,153.35,86.09071775]
[1748787684521,0.4572766,153.36,153.35,106.51075632]
[1748787685731,0.4572766,153.36,153.35,86.09071775]
[1748787687545,0.4572766,153.36,153.35,67.44106889]
[1748787687735,0.4572766,153.36,153.35,47.02103032]
[1748787687940,0.4572766,153.36,153.35,40.5]
[1748787688251,0.4572766,153.36,153.35,67.44106889]
[1748787689346,0.4572766,153.36,153.35,60.92003857]
[1748787690026,0.4572766,153.36,153.34,31.10003857]
[1748787690226,0.4572766,153.36,153.35,20.42003857]
[1748787691032,0.4572766,153.36,153.35,26.94106889]
[1748787691739,0.4572766,153.36,153.35,20.42003857]
[1748787692639,0.4572766,153.36,153.35,26.94106889]
[1748787694354,0.4572766,153.36,153.35,45.59071775]
[1748787694654,0.4572766,153.36,153.35,66.01075632]
[1748787698228,0.4572766,153.36,153.35,45.59071775]
[1748787698834,0.4572766,153.36,153.35,20.42003857]
[1748787699239,0.4572766,153.36,153.35,60.92003857]
[1748787699833,0.4572766,153.36,153.35,86.09071775]
[1748787704353,0.4572766,153.36,153.35,106.51075632]
[1748787704956,0.4572766,153.36,153.35,86.09071775]
[1748787708060,0.4572766,153.36,153.35,60.92003857]
[1748787708235,0.4572766,153.36,153.35,67.44106889]
[1748787709253,0.4572766,153.36,153.35,40.5]
[1748787709460,0.4572766,153.36,153.35,60.92003857]
[1748787710054,0.4572766,153.36,153.35,67.44106889]
[1748787710585,0.4572766,153.36,153.35,20.42003857]
[1748787711270,0.4572766,153.36,153.34,20.42003857]
[1748787711779,0.4572766,153.36,153.31,6.52247813]
[1748787711980,6.97793188,153.36,153.32,20.42003857]
[1748787712179,27.39797045,153.36,153.3,10.68]
[1748787712484,20.42003857,153.34,153.3,31.10003857]
[1748787713283,6.97793188,153.36,153.26,10.68]
[1748787713284,20.42003857,153.32,153.26,10.68]
[1748787713582,20.42003857,153.31,153.26,71.58003857]
[1748787713885,21.92963857,153.33,153.28,20.42003857]
[1748787714178,6.52230628,153.32,153.28,20.42003857]
[1748787714879,1.5096,153.33,153.3,20.42003857]
[1748787715494,8.03166305,153.33,153.3,20.42003857]
[1748787715693,8.03166305,153.33,153.29,20.42003857]
[1748787715984,20.42003857,153.32,153.27,40.5]
[1748787716155,6.52273172,153.31,153.28,20.42003857]
[1748787716559,6.52273172,153.31,153.26,51.18]
[1748787716560,6.52273172,153.31,153.27,20.42003857]
[1748787716865,6.52273172,153.31,153.28,20.42003857]
[1748787717369,26.94277029,153.31,153.27,20.42003857]
[1748787719677,6.52273172,153.31,153.27,20.42003857]
[1748787719984,20.42003857,153.3,153.26,20.42003857]
[1748787720189,26.94277029,153.31,153.26,20.42003857]
[1748787720784,6.52230628,153.32,153.27,20.42003857]
[1748787720989,6.52230628,153.32,153.28,20.42003857]
[1748787721171,1.5096,153.33,153.31,20.42003857]
[1748787721378,1.5096,153.33,153.32,20.42003857]
[1748787723177,1.5096,153.33,153.32,30.61112867]
[1748787724288,8.03148482,153.33,153.29,40.5]
[1748787724493,8.03148482,153.33,153.3,30.61112867]
[1748787724787,1.5096,153.33,153.3,30.61112867]
[1748787725691,0.4572766,153.36,153.32,30.61112867]
[1748787725692,6.97802186,153.36,153.32,30.61112867]
[1748787726395,37.58915053,153.36,153.32,30.61112867]
[1748787726776,37.58915053,153.36,153.29,47.02353359]
[1748787727300,30.61112867,153.35,153.29,40.5]
[1748787727473,30.61112867,153.35,153.29,47.02354956]
[1748787728093,37.58915053,153.36,153.29,47.02354956]
[1748787728901,37.13258425,153.34,153.28,26.0]
[1748787729202,37.13258425,153.34,153.3,30.61112867]
[1748787729373,6.52145558,153.34,153.3,30.61112867]
[1748787729573,0.4572766,153.36,153.32,30.61112867]
[1748787730196,0.4572766,153.36,153.34,30.61112867]
[1748787730402,0.4572766,153.36,153.35,30.61112867]
[1748787730701,0.4572766,153.36,153.34,30.61112867]
[1748787732600,0.4572766,153.36,153.33,30.61112867]
[1748787733506,6.97791379,153.36,153.33,30.61112867]
[1748787734508,37.58904246,153.36,153.29,18.64964886]
[1748787734690,37.58904246,153.36,153.31,30.61112867]
[1748787735092,30.61112867,153.35,153.3,30.61112867]
[1748787735589,6.52145558,153.34,153.31,30.61112867]
[1748787736519,6.52145558,153.34,153.3,30.61112867]
[1748787737699,6.52145558,153.34,153.31,30.61112867]
[1748787739288,6.52145558,153.34,153.3,30.61112867]
[1748787739493,37.13258425,153.34,153.29,30.61112867]
[1748787739909,37.13258425,153.34,153.3,40.5]
[1748787740120,30.61112867,153.33,153.29,40.5]
[1748787740322,30.61112867,153.32,153.29,40.5]
[1748787740934,30.61112867,153.33,153.29,40.5]
[1748787741226,30.61112867,153.33,153.29,71.11112867]
[1748787741728,43.44668425,153.34,153.3,30.61112867]
[1748787741906,6.52145558,153.34,153.3,30.61112867]
[1748787742234,6.52145558,153.34,153.31,30.61112867]
[1748787742522,6.52145558,153.34,153.3,30.61112867]
[1748787743229,6.52145558,153.34,153.3,20.41261498]
[1748787743427,6.52118747,153.35,153.31,20.41261498]
[1748787743804,26.93380245,153.35,153.31,20.41261498]
[1748787744007,26.93380245,153.35,153.3,20.41261498]
[1748787744219,26.93380245,153.35,153.29,40.5]
[1748787744220,26.93380245,153.35,153.31,20.41261498]
[1748787745396,26.93380245,153.35,153.3,20.41261498]
[1748787745603,6.52118747,153.35,153.3,20.41261498]
[1748787745828,26.93380245,153.35,153.3,20.41261498]
[1748787747124,26.93380245,153.35,153.31,20.41261498]
[1748787747719,0.4572766,153.36,153.33,20.41261498]
[1748787747901,0.4572766,153.36,153.29,66.5]
[1748787747902,0.4572766,153.36,153.35,20.41261498]
[1748787752937,0.4572766,153.36,153.35,26.9336453]
[1748787754231,0.4572766,153.36,153.35,20.41261498]
[1748787757145,0.4572766,153.36,153.33,20.41261498]
[1748787757444,0.4572766,153.36,153.34,60.89261498]
[1748787758230,0.4572766,153.36,153.34,40.48]
[1748787758436,0.4572766,153.36,153.32,17.20226789]
[1748787758437,20.41261498,153.35,153.33,40.48]
[1748787758948,27.3907895,153.36,153.33,40.48]
[1748787759338,6.97817452,153.36,153.33,40.48]
[1748787759537,27.3907895,153.36,153.33,40.48]
[1748787759939,20.41261498,153.35,153.33,40.48]
[1748787760125,20.41261498,153.34,153.29,20.41261498]
[1748787760325,20.41261498,153.34,153.3,40.48]
[1748787760526,20.41261498,153.33,153.28,31.09261498]
[1748787760834,20.41261498,153.33,153.29,40.48]
[1748787761029,20.41261498,153.32,153.29,40.48]
[1748787761252,7.8626,153.35,153.28,10.68]
[1748787761253,20.41261498,153.31,153.28,10.68]
[1748787761666,26.93570087,153.31,153.28,40.48]
[1748787763048,20.41261498,153.3,153.26,20.41261498]
[1748787763256,20.41261498,153.3,153.27,40.48]
[1748787763553,26.93570087,153.31,153.27,40.48]
[1748787765255,26.93570087,153.31,153.27,60.89261498]
[1748787765771,26.93570087,153.31,153.27,20.41261498]
[1748787766056,26.93570087,153.31,153.27,60.89261498]
[1748787766434,26.93570087,153.31,153.27,40.48]
[1748787766972,20.41261498,153.3,153.27,40.48]
[1748787767135,20.41261498,153.29,153.26,40.48]
[1748787767331,22.82991519,153.31,153.25,20.41261498]
[1748787767656,20.41261498,153.29,153.25,20.41261498]
[1748787767853,26.93653836,153.29,153.26,40.48]
[1748787768445,26.93653836,153.29,153.24,31.09261498]
[1748787768749,26.93653836,153.29,153.25,40.48]
[1748787771071,26.93653836,153.29,153.24,31.09261498]
[1748787771370,6.52392338,153.29,153.26,20.41261498]
[1748787771565,20.41261498,153.33,153.28,20.41261498]
[1748787771754,20.41261498,153.33,153.25,40.48]
[1748787771956,20.41261498,153.33,153.28,20.41261498]
[1748787772156,20.41261498,153.33,153.29,40.48]
[1748787772647,20.41261498,153.32,153.29,40.48]
[1748787772851,6.52188091,153.33,153.29,40.48]
[1748787773051,20.41261498,153.32,153.29,40.48]
[1748787775852,26.9353467,153.31,153.29,40.48]
[1748787776062,20.41261498,153.3,153.26,20.41261498]
[1748787776262,20.41261498,153.3,153.26,40.48]
[1748787776759,20.41261498,153.29,153.26,40.48]
[1748787777277,20.41261498,153.29,153.24,31.09261498]
[1748787777582,20.41261498,153.28,153.25,40.48]
[1748787777887,6.524434,153.27,153.25,40.48]
[1748787778763,20.41261498,153.26,153.22,20.41261498]
[1748787779072,6.524434,153.27,153.22,60.89261498]
[1748787779261,8.17403413,153.28,153.24,20.41261498]
[1748787779678,8.17403413,153.28,153.25,20.41261498]
[1748787780389,6.5232646,153.3,153.27,20.41261498]
[1748787780767,8.1723741,153.32,153.29,20.41261498]
[1748787780964,8.1723741,153.32,153.28,20.41261498]
[1748787781366,20.41261498,153.3,153.26,60.89261498]
[1748787781574,20.41261498,153.29,153.26,40.48]
[1748787782188,20.41261498,153.3,153.26,40.48]
[1748787782363,6.52358275,153.29,153.26,40.48]
[1748787782763,26.93619773,153.29,153.25,31.09261498]
[1748787784502,26.93619773,153.29,153.21,32.52688947]
[1748787784503,20.41261498,153.27,153.23,20.41261498]
[1748787784668,20.41261498,153.27,153.23,60.89261498]
[1748787785595,22.83253962,153.29,153.23,60.89261498]
[1748787785767,20.41261498,153.27,153.23,60.89261498]
[1748787786092,22.83253962,153.29,153.23,60.89261498]
[1748787786093,20.41261498,153.28,153.24,20.41261498]
[1748787786462,6.524434,153.27,153.24,20.41261498]
[1748787787067,54.61633989,153.32,153.25,20.41261498]
[1748787787261,20.41261498,153.31,153.26,20.41261498]
[1748787787662,20.41261498,153.3,153.26,20.41261498]
[1748787788266,20.41261498,153.3,153.23,40.48]
[1748787788267,20.41261498,153.3,153.25,20.41261498]
[1748787788781,26.93619773,153.29,153.24,20.41261498]
[1748787790070,6.52273172,153.31,153.25,20.41261498]
[1748787790281,20.41261498,153.3,153.26,20.41261498]
[1748787790585,20.41261498,153.29,153.25,20.41261498]
[1748787790787,20.41261498,153.29,153.23,40.48]
[1748787790788,20.41261498,153.28,153.24,40.48]
[1748787791572,20.41261498,153.28,153.24,60.89261498]
[1748787791885,6.524434,153.27,153.24,60.89261498]
[1748787792188,6.524434,153.27,153.24,40.48]
[1748787794078,6.524434,153.27,153.23,60.89261498]
[1748787794489,26.93704898,153.27,153.23,60.89261498]
[1748787794794,6.524434,153.27,153.23,60.89261498]
[1748787795202,6.52416149,153.28,153.24,20.41261498]
[1748787795376,20.41261498,153.31,153.26,20.41261498]
[1748787795574,76.76440737,153.32,153.23,47.00590479]
[1748787795575,6.52330805,153.3,153.27,60.89261498]
[1748787795793,22.14777531,153.32,153.29,20.41261498]
[1748787795993,22.14777531,153.32,153.27,40.48]
[1748787795994,22.14777531,153.32,153.31,20.41261498]
[1748787796198,22.14777531,153.32,153.3,20.41261498]
[1748787796414,28.67015342,153.32,153.3,20.41261498]
[1748787797509,28.67015342,153.32,153.28,20.41261498]
[1748787797510,49.0827684,153.32,153.28,20.41261498]
[1748787798308,28.67015342,153.32,153.28,20.41261498]
[1748787799711,49.0827684,153.32,153.26,10.66]
[1748787799885,20.41261498,153.3,153.27,40.48]
[1748787800086,6.52358275,153.29,153.27,40.48]
[1748787800490,20.41261498,153.31,153.27,40.48]
[1748787800695,6.52327027,153.3,153.27,40.48]
[1748787800907,6.52327027,153.3,153.27,20.41261498]
[1748787801099,6.52327027,153.3,153.27,60.89261498]
[1748787802724,6.52327027,153.3,153.27,40.48]
[1748787803127,26.93588525,153.3,153.27,40.48]
[1748787803502,26.93588525,153.3,153.26,10.66]
[1748787803503,20.41261498,153.29,153.26,51.14]
[1748787803801,20.41261498,153.29,153.26,40.48]
[1748787804505,26.93588525,153.3,153.26,40.48]
[1748787806526,26.93588525,153.3,153.25,20.41261498]
[1748787806733,22.14777531,153.32,153.29,44.64964886]
[1748787807025,0.4572766,153.36,153.31,39.06226384]
[1748787807326,0.4572766,153.36,153.33,20.41261498]
[1748787807512,0.4572766,153.36,153.34,40.48]
[1748787808132,0.4572766,153.36,153.32,20.41261498]
[1748787808444,20.86989158,153.36,153.33,40.48]
[1748787808604,20.41261498,153.35,153.3,31.07261498]
[1748787808804,20.41261498,153.34,153.31,40.46]
[1748787809017,20.41261498,153.35,153.31,40.46]
[1748787810215,0.4572766,153.36,153.34,20.41261498]
[1748787810424,0.4572766,153.36,153.35,60.87261498]
[1748787814733,0.4572766,153.36,153.35,40.46]
[1748787817239,0.4572766,153.36,153.34,20.41261498]
[1748787817240,0.4572766,153.36,153.34,40.46]
[1748787818619,0.4572766,153.36,153.35,20.41261498]
[1748787820927,0.4572766,153.36,153.34,40.46]
[1748787821126,6.97790636,153.36,153.34,40.46]
[1748787821343,0.4572766,153.36,153.34,40.46]
[1748787822775,27.39075719,153.36,153.32,20.41261498]
[1748787822941,27.39075719,153.36,153.33,40.46]
[1748787823560,27.39075719,153.36,153.32,20.41261498]
[1748787823866,20.41261498,153.35,153.32,40.46]
[1748787824061,6.97814221,153.36,153.32,40.46]
[1748787824241,20.41261498,153.35,153.32,40.46]
[1748787824645,27.39075719,153.36,153.32,40.46]
[1748787825365,27.39075719,153.36,153.3,10.66]
[1748787825366,20.41261498,153.33,153.26,10.66]
[1748787825661,20.41261498,153.28,153.24,20.41261498]
[1748787825865,20.41261498,153.28,153.23,20.41261498]
[1748787826046,20.41261498,153.28,153.24,40.46]
[1748787826476,20.41261498,153.27,153.23,20.41261498]
[1748787826666,20.41261498,153.27,153.22,31.07261498]
[1748787826842,20.41261498,153.27,153.24,40.46]
[1748787827270,20.41261498,153.27,153.23,20.41261498]
[1748787827465,26.93722693,153.27,153.23,60.87261498]
[1748787828268,6.52461195,153.27,153.23,60.87261498]
[1748787828440,6.52410297,153.28,153.24,20.41261498]
[1748787828846,26.93671795,153.28,153.24,20.41261498]
[1748787829665,26.93671795,153.28,153.23,60.87261498]
[1748787830779,6.52410297,153.28,153.24,20.41261498]
[1748787830987,6.52369828,153.29,153.25,20.41261498]
[1748787831283,20.41261498,153.31,153.27,20.41261498]
[1748787831497,26.93544245,153.31,153.28,40.46]
[1748787832265,20.41261498,153.3,153.28,40.46]
[1748787832650,26.93589433,153.3,153.28,40.46]
[1748787833082,6.52327935,153.3,153.28,40.46]
[1748787833349,20.41261498,153.31,153.28,40.46]
[1748787834544,26.93554788,153.31,153.28,40.46]
[1748787834748,20.41261498,153.31,153.28,40.46]
[1748787835076,26.93542477,153.31,153.28,40.46]
[1748787836365,6.52188091,153.33,153.3,20.41261498]
[1748787836576,6.52148744,153.34,153.3,20.41261498]
[1748787836774,26.93376331,153.35,153.3,20.41261498]
[1748787837182,20.41261498,153.34,153.3,20.41261498]
[1748787838380,26.93431839,153.34,153.28,40.46]
[1748787838585,20.41261498,153.32,153.29,40.46]
[1748787838800,20.41261498,153.31,153.28,40.46]
[1748787839111,20.41261498,153.29,153.25,20.41261498]
[1748787839289,20.41261498,153.29,153.25,40.46]
[1748787839485,20.41261498,153.28,153.25,40.46]
[1748787840003,20.41261498,153.28,153.24,20.41261498]
[1748787840004,20.41261498,153.27,153.23,10.66]
[1748787840524,6.52472441,153.27,153.23,10.66]
[1748787840676,26.93733939,153.27,153.23,31.07261498]
[1748787842094,26.93733939,153.27,153.23,10.66]
[1748787842305,26.93733939,153.27,153.23,31.07261498]
[1748787843213,20.41261498,153.24,153.19,10.66]
[1748787843380,1.6427,153.25,153.19,51.12]
[1748787843381,20.41261498,153.22,153.19,51.12]
[1748787843577,20.41261498,153.23,153.19,10.66]
[1748787843779,20.41261498,153.23,153.19,51.12]
[1748787844013,20.41261498,153.22,153.17,20.41261498]
[1748787844191,20.41261498,153.22,153.18,40.46]
[1748787845318,6.52698909,153.21,153.18,40.46]
[1748787845891,6.52698909,153.21,153.17,20.41261498]
[1748787846093,26.93960407,153.21,153.17,20.41261498]
[1748787846293,26.93960407,153.21,153.17,60.87261498]
[1748787846726,26.93960407,153.21,153.16,20.41261498]
[1748787846915,26.93960407,153.21,153.17,40.46]
[1748787847221,26.93960407,153.21,153.16,20.41261498]
[1748787847424,20.41261498,153.2,153.16,40.46]
[1748787848004,20.41261498,153.2,153.15,20.41261498]
[1748787848209,20.41261498,153.2,153.16,20.41261498]
[1748787848623,6.52784124,153.19,153.16,40.46]
[1748787848916,6.52784124,153.19,153.15,40.46]
[1748787848917,20.41261498,153.18,153.15,40.46]
[1748787849300,26.94045622,153.19,153.15,60.87261498]
[1748787849521,20.41261498,153.18,153.14,31.07261498]
[1748787849724,20.41261498,153.18,153.15,40.46]
[1748787850714,26.94122483,153.18,153.14,71.55261498]
[1748787851104,6.52860985,153.18,153.15,20.41261498]
[1748787851505,6.52860985,153.18,153.14,51.14]
[1748787851814,20.41261498,153.17,153.14,51.14]
[1748787852018,20.41261498,153.17,153.12,20.41261498]
[1748787852209,20.41261498,153.17,153.13,40.48]
[1748787852400,20.41261498,153.17,153.13,60.89261498]
[1748787852916,26.94162376,153.17,153.13,60.89261498]
[1748787853102,26.94162376,153.17,153.14,20.41261498]
[1748787853103,6.52900878,153.17,153.14,20.41261498]
[1748787853827,1.6067,153.23,153.16,20.41261498]
[1748787854127,1.6067,153.23,153.19,20.41261498]
[1748787854128,22.01931498,153.23,153.19,20.41261498]
[1748787854615,22.01931498,153.23,153.18,20.41261498]
[1748787854806,28.54545215,153.23,153.18,20.41261498]
[1748787855214,8.13283717,153.23,153.19,20.41261498]
[1748787855507,1.6067,153.23,153.2,20.41261498]
[1748787855824,8.13283955,153.23,153.19,20.41261498]
[1748787856533,28.54545453,153.23,153.19,20.41261498]
[1748787857131,20.41261498,153.22,153.18,20.41261498]
[1748787859106,28.54545453,153.23,153.18,20.41261498]
[1748787859824,20.41261498,153.22,153.18,20.41261498]
[1748787860643,8.13283955,153.23,153.16,20.41261498]
[1748787860644,20.41261498,153.21,153.16,20.41261498]
[1748787860844,20.41261498,153.19,153.16,40.48]
[1748787861049,20.41261498,153.18,153.15,51.14]
[1748787861223,20.41261498,153.18,153.15,10.66]
[1748787861543,26.94112446,153.18,153.15,51.14]
[1748787861925,16.31640777,153.22,153.15,31.07261498]
[1748787862131,20.41261498,153.21,153.16,20.41261498]
[1748787863646,6.52741514,153.2,153.16,20.41261498]
[1748787863858,26.94003012,153.2,153.16,20.41261498]
[1748787864346,26.93965559,153.21,153.17,20.41261498]
[1748787864653,10.06354959,153.25,153.2,20.41261498]
[1748787864828,10.06354959,153.25,153.21,40.48]
[1748787865229,10.06354959,153.25,153.22,20.41261498]
[1748787865920,10.06354959,153.25,153.21,40.48]
[1748787865921,1.5783,153.27,153.23,20.41261498]
[1748787867760,21.99091498,153.27,153.22,20.41261498]
[1748787868545,21.99091498,153.27,153.23,20.41261498]
[1748787868752,1.5783,153.27,153.24,20.41261498]
[1748787868949,20.41261498,153.3,153.25,60.89261498]
[1748787869347,46.41261498,153.3,153.25,60.89261498]